fUSD/lending_fUSD_20260606
["ID","MTS","AMOUNT","RATE_DAILY","PERIOD"]
[424259947,1780707082000,-336.083144,0.000384,7]
[424259964,1780707082000,-151.0,0.000384,30]
[424259995,1780707082000,-194.091505,0.000384,30]
[424259965,1780707082000,-166.0,0.000384,120]
[424259991,1780707082000,-151.0,0.000384,30]
[424260001,1780707082000,-432.548374,0.000384,30]
[424259990,1780707082000,-151.0,0.000384,30]
[424259999,1780707082000,-200.0,0.000384,2]
[424259994,1780707082000,-151.0,0.000384,30]
[424259996,1780707082000,-194.091505,0.000384,30]
[424259998,1780707082000,-194.091505,0.000384,30]
[424259997,1780707082000,-194.091505,0.000384,30]
[424260003,1780707082000,-1548.0,0.000384,120]
[424260002,1780707082000,-432.548374,0.000384,30]
[424260005,1780707082000,-1545.0,0.000384,120]
[424260012,1780707082000,-152.0,0.000384,120]
[424260010,1780707082000,-152.0,0.000384,120]
[424260007,1780707082000,-152.0,0.000384,120]
[424260008,1780707082000,-152.0,0.000384,120]
[424260004,1780707082000,-1548.0,0.000384,120]
[424260011,1780707082000,-152.0,0.000384,120]
[424260006,1780707082000,-432.548374,0.000384,30]
[424259971,1780707082000,-261.473768,0.000384,2]
[424259992,1780707082000,-151.0,0.000384,30]
[424260000,1780707082000,-432.548374,0.000384,30]
[424260009,1780707082000,-152.0,0.000384,120]
[424259989,1780707082000,-151.0,0.000384,30]
[424259966,1780707082000,-166.0,0.000384,120]
[424259993,1780707082000,-151.0,0.000384,30]
[424259969,1780707082000,-151.0,0.000384,30]
[424259967,1780707082000,-166.0,0.000384,120]
[424259972,1780707082000,-261.473768,0.000384,2]
[424259976,1780707082000,-151.0,0.000384,30]
[424259986,1780707082000,-761.888544,0.000384,30]
[424259975,1780707082000,-151.0,0.000384,30]
[424259978,1780707082000,-157.848844,0.000384,30]
[424259968,1780707082000,-166.0,0.000384,120]
[424259988,1780707082000,-151.0,0.000384,30]
[424259985,1780707082000,-761.888544,0.000384,30]
[424259987,1780707082000,-151.0,0.000384,30]
[424259984,1780707082000,-761.888544,0.000384,30]
[424259981,1780707082000,-1684.513686,0.000384,30]
[424259979,1780707082000,-1684.513686,0.000384,30]
[424259977,1780707082000,-151.0,0.000384,30]
[424259982,1780707082000,-1684.513686,0.000384,30]
[424259983,1780707082000,-761.888544,0.000384,30]
[424259980,1780707082000,-1684.513686,0.000384,30]
[424260057,1780707083000,-151.0,0.000384,30]
[424260053,1780707083000,-2126.765351,0.000384,30]
[424260052,1780707083000,-2126.765351,0.000384,30]
[424260050,1780707083000,-276.530525,0.000384,30]
[424260062,1780707083000,-216.970993,0.000384,21]
[424260047,1780707083000,-276.530525,0.000384,30]
[424260051,1780707083000,-276.53052,0.000384,30]
[424260038,1780707083000,-622.821157,0.000384,30]
[424260042,1780707083000,-1322.17485,0.000384,30]
[424260040,1780707083000,-1322.17485,0.000384,30]
[424260054,1780707083000,-2126.765351,0.000384,30]
[424260045,1780707083000,-622.821165,0.000384,30]
[424260061,1780707083000,-219.903157,0.000384,30]
[424260056,1780707083000,-342.280518,0.000384,30]
[424260065,1780707083000,-1502.447356,0.000384,30]
[424260055,1780707083000,-2126.765355,0.000384,30]
[424260060,1780707083000,-342.280518,0.000384,30]
[424260058,1780707083000,-342.280518,0.000384,30]
[424260063,1780707083000,-342.28052,0.000384,30]
[424260066,1780707083000,-323.208621,0.000384,30]
[424260069,1780707083000,-323.208621,0.000384,30]
[424260064,1780707083000,-1502.447356,0.000384,30]
[424260067,1780707083000,-1287.378784,0.000384,30]
[424260071,1780707083000,-1287.378784,0.000384,30]
[424260072,1780707083000,-1502.447347,0.000384,30]
[424260074,1780707083000,-2089.359127,0.000384,30]
[424260073,1780707083000,-323.208621,0.000384,30]
[424260043,1780707083000,-622.821157,0.000384,30]
[424260059,1780707083000,-151.0,0.000384,30]
[424260048,1780707083000,-151.0,0.000384,30]
[424260023,1780707083000,-637.3216458,0.000384,30]
[424260046,1780707083000,-151.0,0.000384,30]
[424260013,1780707083000,-240.0,0.000384,120]
[424260020,1780707083000,-286.546088,0.000384,30]
[424260018,1780707083000,-151.0,0.000384,120]
[424260070,1780707083000,-2089.359127,0.000384,30]
[424260019,1780707083000,-151.0,0.000384,120]
[424260017,1780707083000,-286.546088,0.000384,30]
[424260014,1780707083000,-286.546088,0.000384,30]
[424260015,1780707083000,-152.0,0.000384,120]
[424260016,1780707083000,-152.0,0.000384,120]
[424260024,1780707083000,-500.0,0.000384,14]
[424260021,1780707083000,-286.546088,0.000384,30]
[424260022,1780707083000,-278.286054,0.000384,30]
[424260026,1780707083000,-500.0,0.000384,14]
[424260041,1780707083000,-622.821157,0.000384,30]
[424260036,1780707083000,-151.0,0.000384,30]
[424260028,1780707083000,-500.0,0.000384,14]
[424260029,1780707083000,-500.0,0.000384,14]
[424260025,1780707083000,-500.0,0.000384,14]
[424260027,1780707083000,-500.0,0.000384,14]
[424260030,1780707083000,-500.0,0.000384,14]
[424260032,1780707083000,-871.633232,0.000384,30]
[424260035,1780707083000,-871.633232,0.000384,30]
[424260034,1780707083000,-871.633232,0.000384,30]
[424260033,1780707083000,-871.633232,0.000384,30]
[424260031,1780707083000,-500.0,0.000384,14]
[424260039,1780707083000,-151.0,0.000384,30]
[424260049,1780707083000,-276.530525,0.000384,30]
[424260044,1780707083000,-1322.174841,0.000384,30]
[424260037,1780707083000,-1322.17485,0.000384,30]
[424260068,1780707083000,-1502.447356,0.000384,30]
[424260135,1780707083000,-1091.871311,0.000384,30]
[424260077,1780707083000,-1819.29716009,0.000384,2]
[424260105,1780707083000,-723.193245,0.000384,30]
[424260109,1780707083000,-1094.222631,0.000384,30]
[424260112,1780707083000,-166.396231,0.000384,30]
[424260113,1780707083000,-1094.222631,0.000384,30]
[424260111,1780707083000,-1094.222631,0.000384,30]
[424260119,1780707083000,-616.852183,0.000384,30]
[424260115,1780707083000,-166.396231,0.000384,30]
[424260117,1780707083000,-616.852183,0.000384,30]
[424260118,1780707083000,-166.396231,0.000384,30]
[424260120,1780707083000,-616.852183,0.000384,30]
[424260121,1780707083000,-2532.201305,0.000384,28]
[424260126,1780707083000,-151.0,0.000384,30]
[424260124,1780707083000,-2532.201305,0.000384,28]
[424260108,1780707083000,-254.591068,0.000384,30]
[424260116,1780707083000,-1094.222631,0.000384,30]
[424260122,1780707083000,-2532.201305,0.000384,28]
[424260123,1780707083000,-2532.201305,0.000384,28]
[424260127,1780707083000,-1543.31254,0.000384,7]
[424260128,1780707083000,-1543.31254,0.000384,7]
[424260130,1780707083000,-181.313747,0.000384,30]
[424260138,1780707083000,-532.737278,0.000384,30]
[424260129,1780707083000,-1091.871311,0.000384,30]
[424260131,1780707083000,-1091.871311,0.000384,30]
[424260134,1780707083000,-181.313747,0.000384,30]
[424260133,1780707083000,-699.951216,0.000384,15]
[424260137,1780707083000,-699.951216,0.000384,15]
[424260136,1780707083000,-1543.31254,0.000384,7]
[424260075,1780707083000,-924.780105,0.000384,30]
[424260125,1780707083000,-1915.43646842,0.000384,2]
[424260106,1780707083000,-723.193245,0.000384,30]
[424260132,1780707083000,-1543.31254,0.000384,7]
[424260107,1780707083000,-723.193245,0.000384,30]
[424260103,1780707083000,-400.0,0.000384,30]
[424260086,1780707083000,-162.504604,0.000384,30]
[424260087,1780707083000,-924.780108,0.000384,30]
[424260076,1780707083000,-1819.29716009,0.000384,2]
[424260081,1780707083000,-924.780105,0.000384,30]
[424260089,1780707083000,-162.504614,0.000384,30]
[424260082,1780707083000,-1287.37878244,0.000384,30]
[424260085,1780707083000,-2089.35913,0.000384,30]
[424260088,1780707083000,-162.504604,0.000384,30]
[424260083,1780707083000,-162.504604,0.000384,30]
[424260084,1780707083000,-924.780105,0.000384,30]
[424260078,1780707083000,-1287.378784,0.000384,30]
[424260079,1780707083000,-323.208622,0.000384,30]
[424260090,1780707083000,-416.188353,0.000384,30]
[424260080,1780707083000,-2089.359127,0.000384,30]
[424260092,1780707083000,-416.188353,0.000384,30]
[424260091,1780707083000,-416.188353,0.000384,30]
[424260114,1780707083000,-616.852183,0.000384,30]
[424260104,1780707083000,-2110.0,0.000384,2]
[424260101,1780707083000,-400.0,0.000384,30]
[424260095,1780707083000,-238.116691,0.000384,30]
[424260099,1780707083000,-238.116684,0.000384,30]
[424260100,1780707083000,-151.0,0.000384,30]
[424260096,1780707083000,-400.0,0.000384,30]
[424260093,1780707083000,-416.188358,0.000384,30]
[424260097,1780707083000,-238.116691,0.000384,30]
[424260094,1780707083000,-238.116691,0.000384,30]
[424260098,1780707083000,-400.0,0.000384,30]
[424260110,1780707083000,-166.396231,0.000384,30]
[424260102,1780707083000,-723.193245,0.000384,30]
[424260168,1780707084000,-186.915139,0.000384,30]
[424260166,1780707084000,-186.915139,0.000384,30]
[424260173,1780707084000,-470.75516,0.000384,30]
[424260172,1780707084000,-4234.643227,0.000384,30]
[424260165,1780707084000,-172.055426,0.000384,30]
[424260169,1780707084000,-200.0,0.000384,2]
[424260175,1780707084000,-470.75516,0.000384,30]
[424260181,1780707084000,-1219.584576,0.000384,30]
[424260176,1780707084000,-1519.77345097,0.000384,2]
[424260185,1780707084000,-151.0,0.000384,30]
[424260171,1780707084000,-4234.643227,0.000384,30]
[424260179,1780707084000,-470.75516,0.000384,30]
[424260182,1780707084000,-151.0,0.000384,30]
[424260177,1780707084000,-470.75516,0.000384,30]
[424260174,1780707084000,-4234.643227,0.000384,30]
[424260178,1780707084000,-1219.584576,0.000384,30]
[424260184,1780707084000,-196.858265,0.000384,30]
[424260183,1780707084000,-1219.584576,0.000384,30]
[424260190,1780707084000,-627.0,0.000384,30]
[424260188,1780707084000,-627.0,0.000384,30]
[424260186,1780707084000,-196.858265,0.000384,30]
[424260170,1780707084000,-4234.643227,0.000384,30]
[424260195,1780707084000,-627.0,0.000384,30]
[424260180,1780707084000,-1219.584576,0.000384,30]
[424260164,1780707084000,-520.534854,0.000384,30]
[424260144,1780707084000,-151.0,0.000384,30]
[424260163,1780707084000,-186.915139,0.000384,30]
[424260187,1780707084000,-151.0,0.000384,30]
[424260139,1780707084000,-181.313747,0.000384,30]
[424260140,1780707084000,-1091.871311,0.000384,30]
[424260141,1780707084000,-699.951216,0.000384,15]
[424260142,1780707084000,-181.313747,0.000384,30]
[424260146,1780707084000,-532.737278,0.000384,30]
[424260145,1780707084000,-699.951216,0.000384,15]
[424260147,1780707084000,-151.0,0.000384,30]
[424260143,1780707084000,-532.737278,0.000384,30]
[424260148,1780707084000,-151.0,0.000384,30]
[424260151,1780707084000,-151.0,0.000384,30]
[424260167,1780707084000,-186.915139,0.000384,30]
[424260149,1780707084000,-151.0,0.000384,30]
[424260153,1780707084000,-151.0,0.000384,30]
[424260155,1780707084000,-151.0,0.000384,30]
[424260154,1780707084000,-520.534854,0.000384,30]
[424260152,1780707084000,-151.0,0.000384,30]
[424260158,1780707084000,-520.534854,0.000384,30]
[424260161,1780707084000,-520.534854,0.000384,30]
[424260157,1780707084000,-174.814168,0.000384,30]
[424260160,1780707084000,-151.0,0.000384,30]
[424260156,1780707084000,-151.0,0.000384,30]
[424260159,1780707084000,-151.0,0.000384,30]
[424260162,1780707084000,-151.0,0.000384,30]
[424260150,1780707084000,-532.737278,0.000384,30]
[424260196,1780707084000,-627.0,0.000384,30]
[424260199,1780707084000,-151.0,0.000384,30]
[424260189,1780707084000,-196.858265,0.000384,30]
[424260229,1780707084000,-5000.0,0.000385,3]
[424260228,1780707084000,-585.8051947,0.000385,5]
[424260225,1780707084000,-150.0,0.00038497,120]
[424260223,1780707084000,-637.3216458,0.00038484,30]
[424260226,1780707084000,-151.87334371,0.00038498,2]
[424260224,1780707084000,-152.0,0.00038491,30]
[424260227,1780707084000,-28022.66,0.00038499,14]
[424260230,1780707084000,-615.40383291,0.000385,31]
[424260232,1780707084000,-3000.0,0.000385,90]
[424260231,1780707084000,-111484.67084536,0.000385,30]
[424260234,1780707084000,-26338.96132581,0.000385,2]
[424260221,1780707084000,-2626.0,0.00038479,2]
[424260233,1780707084000,-13534.23463083,0.000385,102]
[424260238,1780707084000,-152.0,0.00038517,10]
[424260237,1780707084000,-150.0,0.00038507,120]
[424260236,1780707084000,-343.98626257,0.000385,10]
[424260240,1780707084000,-152.0,0.00038524,7]
[424260193,1780707084000,-196.858265,0.000384,30]
[424260239,1780707084000,-208.84,0.0003852,105]
[424260243,1780707084000,-170.4,0.00038538,120]
[424260241,1780707084000,-35583.88,0.00038528,14]
[424260245,1780707084000,-614.11,0.00038538,120]
[424260244,1780707084000,-1823.28,0.00038538,120]
[424260246,1780707084000,-177.81,0.00038538,120]
[424260235,1780707084000,-60000.0,0.000385,90]
[424260222,1780707084000,-403.48,0.00038479,7]
[424260242,1780707084000,-150.0,0.00038536,120]
[424260215,1780707084000,-5000.0,0.00038454,7]
[424260218,1780707084000,-400.0,0.0003847,2]
[424260192,1780707084000,-627.0,0.000384,30]
[424260191,1780707084000,-627.0,0.000384,30]
[424260194,1780707084000,-220.205265,0.000384,30]
[424260198,1780707084000,-627.0,0.000384,30]
[424260208,1780707084000,-5000.0,0.00038428,7]
[424260197,1780707084000,-627.0,0.000384,30]
[424260201,1780707084000,-220.205265,0.000384,30]
[424260200,1780707084000,-658.0,0.000384,30]
[424260204,1780707084000,-150.0,0.00038418,120]
[424260203,1780707084000,-150.0,0.00038407,120]
[424260202,1780707084000,-5000.0,0.00038403,7]
[424260207,1780707084000,-28022.66,0.00038428,14]
[424260206,1780707084000,-650.24460255,0.00038421,7]
[424260205,1780707084000,-459.0,0.00038419,5]
[424260217,1780707084000,-150.0,0.00038464,2]
[424260210,1780707084000,-150.75944643,0.00038442,14]
[424260213,1780707084000,-47155.08456293,0.00038448,120]
[424260216,1780707084000,-150.0,0.00038457,120]
[424260220,1780707084000,-25421.00186474,0.00038471,14]
[424260214,1780707084000,-3463.41484411,0.00038448,2]
[424260212,1780707084000,-152.0,0.00038447,7]
[424260209,1780707084000,-500.0,0.00038437,7]
[424260211,1780707084000,-217038.0,0.00038443,120]
[424260219,1780707084000,-400.0,0.0003847,2]
[424260269,1780707085000,-28022.66,0.00038571,14]
[424260277,1780707085000,-158.0881482,0.00038593,2]
[424260267,1780707085000,-637.3216458,0.00038568,30]
[424260268,1780707085000,-300.0,0.00038569,52]
[424260266,1780707085000,-250.0,0.00038563,2]
[424260272,1780707085000,-176.0,0.00038581,10]
[424260273,1780707085000,-60284.54,0.00038585,14]
[424260274,1780707085000,-6126.0,0.00038588,10]
[424260283,1780707085000,-60545.1626523,0.000386,23]
[424260279,1780707085000,-197.0,0.00038596,10]
[424260280,1780707085000,-151.87334371,0.00038598,2]
[424260281,1780707085000,-152.0,0.00038598,30]
[424260278,1780707085000,-392.0,0.00038595,10]
[424260287,1780707085000,-342.083144,0.000386,30]
[424260284,1780707085000,-220.17674,0.000386,7]
[424260271,1780707085000,-217.0,0.0003858,10]
[424260285,1780707085000,-330.265111,0.000386,7]
[424260282,1780707085000,-152.0,0.00038598,30]
[424260270,1780707085000,-150.0,0.00038575,120]
[424260263,1780707085000,-5000.0,0.00038563,2]
[424260275,1780707085000,-1969.0,0.00038588,10]
[424260286,1780707085000,-429.083147,0.000386,30]
[424260248,1780707085000,-315.89,0.00038538,120]
[424260249,1780707085000,-2000.0,0.00038538,120]
[424260250,1780707085000,-2000.0,0.00038538,120]
[424260251,1780707085000,-454.86,0.00038538,120]
[424260253,1780707085000,-1569.59,0.00038538,120]
[424260252,1780707085000,-225.73,0.00038538,120]
[424260261,1780707085000,-213.62090161,0.00038553,120]
[424260276,1780707085000,-780.0,0.00038588,10]
[424260256,1780707085000,-7607.07471384,0.00038541,7]
[424260258,1780707085000,-213.48459273,0.00038553,120]
[424260257,1780707085000,-209.12547574,0.00038553,120]
[424260260,1780707085000,-213.62090161,0.00038553,120]
[424260254,1780707085000,-242.57,0.00038538,120]
[424260255,1780707085000,-527.81,0.00038538,120]
[424260259,1780707085000,-213.62090161,0.00038553,120]
[424260265,1780707085000,-250.0,0.00038563,2]
[424260264,1780707085000,-5000.0,0.00038563,2]
[424260262,1780707085000,-214.39271659,0.00038553,120]
[424260289,1780707085000,-345.083144,0.000386,30]
[424260247,1780707085000,-693.22,0.00038538,120]
[424260290,1780707085000,-342.083144,0.000386,30]
[424260313,1780707085000,-220.205265,0.00037808,30]
[424260314,1780707085000,-4.62802858,0.000386,30]
[424260317,1780707085000,-345.083144,0.000386,30]
[424260315,1780707085000,-342.083144,0.000386,30]
[424260319,1780707085000,-110.21529748,0.000386,30]
[424260318,1780707085000,-342.083144,0.000386,30]
[424260316,1780707085000,-339.083144,0.000386,30]
[424260321,1780707085000,-339.083144,0.000386,30]
[424260320,1780707085000,-267.86784652,0.000386,30]
[424260322,1780707085000,-336.083144,0.000386,30]
[424260323,1780707085000,-342.083144,0.000386,30]
[424260328,1780707085000,-336.083144,0.000386,30]
[424260326,1780707085000,-342.083144,0.000386,30]
[424260327,1780707085000,-339.083144,0.000386,30]
[424260325,1780707085000,-336.083144,0.000386,30]
[424260329,1780707085000,-222.46700148,0.000386,30]
[424260330,1780707085000,-2035.55436827,0.00024621,2]
[424260311,1780707085000,-300.0,0.00034969,2]
[424260312,1780707085000,-153.088833,0.00035998,30]
[424260324,1780707085000,-339.083144,0.000386,30]
[424260309,1780707085000,-339.083144,0.000386,30]
[424260304,1780707085000,-345.083144,0.000386,30]
[424260292,1780707085000,-345.083144,0.000386,30]
[424260294,1780707085000,-339.083144,0.000386,30]
[424260291,1780707085000,-339.083144,0.000386,30]
[424260293,1780707085000,-342.083144,0.000386,30]
[424260298,1780707085000,-345.083144,0.000386,30]
[424260295,1780707085000,-345.083144,0.000386,30]
[424260296,1780707085000,-342.083144,0.000386,30]
[424260297,1780707085000,-339.083144,0.000386,30]
[424260288,1780707085000,-339.083144,0.000386,30]
[424260300,1780707085000,-339.083144,0.000386,30]
[424260299,1780707085000,-342.083144,0.000386,30]
[424260303,1780707085000,-339.083144,0.000386,30]
[424260310,1780707085000,-340.45511542,0.000386,30]
[424260306,1780707085000,-339.083144,0.000386,30]
[424260301,1780707085000,-345.083144,0.000386,30]
[424260308,1780707085000,-342.083144,0.000386,30]
[424260302,1780707085000,-342.083144,0.000386,30]
[424260305,1780707085000,-342.083144,0.000386,30]
[424260307,1780707085000,-345.083144,0.000386,30]
[424260331,1780707086000,-573.5492,0.00024621,2]
[424260332,1780707087000,-672.29599816,0.00024621,2]
[424260333,1780707087000,-1265.24,0.00024621,2]
[424260334,1780707087000,-395.0,0.00013699,2]
[424260336,1780707087000,-338.51698456,0.00015867,2]
[424260337,1780707087000,-71.92518725,0.00018867,2]
[424260338,1780707087000,152.0,0.00030017,120]
[424260335,1780707087000,-80.48301544,0.00015867,2]
[424260340,1780707090000,1208.91885744,8.696e-05,7]
[424260341,1780707090000,295.58795708,8.525e-05,7]
[424260342,1780707090000,1208.91885744,8.951e-05,7]
[424260339,1780707090000,1208.91885744,8.525e-05,7]
[424260343,1780707090000,1208.91885744,9.207e-05,7]
[424260345,1780707090000,1208.91885745,9.548e-05,7]
[424260346,1780707090000,295.58795708,8.951e-05,7]
[424260344,1780707090000,295.58795708,8.696e-05,7]
[424260347,1780707090000,295.58795708,9.207e-05,7]
[424260348,1780707091000,295.58795712,9.548e-05,7]
[424260349,1780707107000,152.0,0.00030017,120]
[424260351,1780707458000,200.0,9.6e-05,3]
[424260352,1780707460000,400.0,9.7e-05,3]
[424260353,1780707462000,600.0,9.8e-05,3]
[424260354,1780707464000,800.0,9.9e-05,3]
[424260355,1780707467000,1000.0,0.0001,3]
[424260356,1780707488000,478.92,0.00030082,120]
[424260358,1780707497000,150.0,9.569e-05,7]
[424260359,1780707529000,200.0,9.673e-05,7]
[424260360,1780707530000,200.0,9.673e-05,7]
[424260361,1780707532000,200.0,9.673e-05,7]
[424260362,1780707533000,200.0,9.673e-05,7]
[424260363,1780707534000,200.0,9.673e-05,7]
[424260364,1780707535000,200.0,9.673e-05,7]
[424260365,1780707537000,200.0,9.673e-05,7]
[424260366,1780707538000,301.43,9.673e-05,7]
[424260367,1780707617000,150.00000001,9.348e-05,7]
[424260378,1780707752000,152.0,0.00030039,120]
[424260381,1780707781000,152.0,0.00030039,120]
[424260384,1780707868000,500.0,0.00030137,120]
[424260385,1780707887000,152.0,0.00030039,120]
[424260387,1780707967000,152.0,0.00030039,120]
[424260388,1780708042000,300.0,9.6e-05,3]
[424260389,1780708044000,600.0,9.7e-05,3]
[424260390,1780708046000,1000.0,9.8e-05,3]
[424260393,1780708048000,1300.0,9.9e-05,3]
[424260395,1780708050000,1700.0,0.0001,3]
[424260399,1780708145000,-200.0,8.796e-05,2]
[424260398,1780708145000,-200.0,8.796e-05,2]
[424260396,1780708145000,-200.0,8.796e-05,2]
[424260397,1780708145000,-200.0,8.796e-05,2]
[424260400,1780708145000,-200.0,8.796e-05,2]
[424260401,1780708145000,-200.0,8.796e-05,2]
[424260402,1780708145000,-200.0,8.796e-05,2]
[424260404,1780708145000,-300.0,8.984e-05,2]
[424260403,1780708145000,-200.0,8.796e-05,2]
[424260405,1780708145000,-2339.79983789,8.985e-05,2]
[424260406,1780708145000,-1200.03016211,8.985e-05,2]
[424260407,1780708145000,-81.82732955,9.186e-05,2]
[424260408,1780708151000,55.4084,7.985e-05,2]
[424260409,1780708151000,254.89563632,7.985e-05,2]
[424260441,1780708232000,-500.0,9.326e-05,2]
[424260442,1780708232000,-315.40724718,9.326e-05,2]
[424260447,1780708232000,-500.0,9.326e-05,2]
[424260446,1780708232000,-500.0,9.326e-05,2]
[424260448,1780708232000,-500.0,9.326e-05,2]
[424260451,1780708232000,-500.0,9.326e-05,2]
[424260449,1780708232000,-500.0,9.326e-05,2]
[424260455,1780708232000,-500.0,9.326e-05,2]
[424260453,1780708232000,-500.0,9.326e-05,2]
[424260445,1780708232000,-500.0,9.326e-05,2]
[424260439,1780708232000,-500.0,9.326e-05,2]
[424260461,1780708232000,-500.0,9.326e-05,2]
[424260459,1780708232000,-500.0,9.326e-05,2]
[424260465,1780708232000,-500.0,9.326e-05,2]
[424260463,1780708232000,-500.0,9.326e-05,2]
[424260440,1780708232000,-500.0,9.326e-05,2]
[424260425,1780708232000,-92.19706907,9.219e-05,2]
[424260437,1780708232000,-500.0,9.326e-05,2]
[424260423,1780708232000,-132.45267045,9.186e-05,2]
[424260424,1780708232000,-275.35026048,9.203e-05,2]
[424260427,1780708232000,-150.0,9.294e-05,2]
[424260428,1780708232000,-150.0,9.325e-05,2]
[424260429,1780708232000,-500.0,9.326e-05,2]
[424260431,1780708232000,-500.0,9.326e-05,2]
[424260426,1780708232000,-107.80293093,9.219e-05,2]
[424260430,1780708232000,-500.0,9.326e-05,2]
[424260432,1780708232000,-500.0,9.326e-05,2]
[424260434,1780708232000,-229.74034098,9.326e-05,2]
[424260443,1780708232000,-500.0,9.326e-05,2]
[424260444,1780708232000,-500.0,9.326e-05,2]
[424260435,1780708232000,-500.0,9.326e-05,2]
[424260433,1780708232000,-166.06765136,9.326e-05,2]
[424260436,1780708232000,-500.0,9.326e-05,2]
[424260438,1780708232000,-500.0,9.326e-05,2]
[424260467,1780708232000,-500.0,9.326e-05,2]
[424260457,1780708232000,-500.0,9.326e-05,2]
[424260473,1780708232000,-500.0,9.326e-05,2]
[424260516,1780708232000,-163.53690543,9.568e-05,2]
[424260518,1780708232000,-150.0,9.57e-05,2]
[424260520,1780708232000,-6577.177,9.572e-05,2]
[424260524,1780708232000,-2000.0,9.573e-05,2]
[424260526,1780708232000,-33256.6326,9.573e-05,2]
[424260528,1780708232000,-2500.0,9.573e-05,2]
[424260530,1780708232000,-230.0,9.662e-05,2]
[424260522,1780708232000,-353.72,9.572e-05,2]
[424260536,1780708232000,-18648.53197666,9.673e-05,2]
[424260535,1780708232000,-576289.11590348,9.673e-05,2]
[424260533,1780708232000,-9999.99,9.672e-05,2]
[424260538,1780708232000,-118412.85374591,9.673e-05,2]
[424260545,1780708232000,-11064.22968362,9.673e-05,2]
[424260547,1780708232000,-31548.89858649,9.673e-05,2]
[424260468,1780708232000,-638.71708705,9.326e-05,2]
[424260512,1780708232000,-150.0,9.568e-05,2]
[424260510,1780708232000,-473.35759586,9.568e-05,2]
[424260541,1780708232000,-2019.00692458,9.673e-05,2]
[424260500,1780708232000,-500.0,9.568e-05,2]
[424260470,1780708232000,-500.0,9.326e-05,2]
[424260514,1780708232000,-300.0,9.568e-05,2]
[424260483,1780708232000,-150.0,9.348e-05,2]
[424260479,1780708232000,-615.70918782,9.326e-05,2]
[424260474,1780708232000,-500.0,9.326e-05,2]
[424260480,1780708232000,-2000.0,9.327e-05,2]
[424260485,1780708232000,-150.0,9.386e-05,2]
[424260476,1780708232000,-500.0,9.326e-05,2]
[424260502,1780708232000,-310.80816764,9.568e-05,2]
[424260493,1780708232000,-500.0,9.537e-05,2]
[424260506,1780708232000,-500.0,9.568e-05,2]
[424260508,1780708232000,-500.0,9.568e-05,2]
[424260494,1780708232000,-500.0,9.568e-05,2]
[424260504,1780708232000,-220.5045783,9.568e-05,2]
[424260490,1780708232000,-150.0,9.478e-05,2]
[424260497,1780708232000,-238.29773968,9.568e-05,2]
[424260609,1780708238000,-215.77576141,9.888e-05,2]
[424260611,1780708238000,-1000.0,9.999e-05,2]
[424260615,1780708238000,-250.0,0.00010105,2]
[424260612,1780708238000,-187.04085734,0.0001,2]